fUST/lending_fUST_20250724
["ID","MTS","AMOUNT","RATE_DAILY","PERIOD"]
[374554241,1753351862056,-600.35224083,0.00020821,2]
[374554242,1753351862065,-1959.76,0.00020821,2]
[374554243,1753351862074,-460.0,0.00020821,2]
[374554244,1753351862083,-460.0,0.00020821,2]
[374554245,1753351862093,-501.66,0.00020821,2]
[374554246,1753351862102,-460.0,0.00020821,2]
[374554247,1753351862111,-460.0,0.00020821,2]
[374554248,1753351862121,-476.54,0.00020821,2]
[374554249,1753351862131,-460.0,0.00020821,2]
[374554250,1753351862141,-460.0,0.00020821,2]
[374554251,1753351862151,-493.61,0.00020821,2]
[374554252,1753351862160,-460.0,0.00020821,2]
[374554253,1753351862169,-460.0,0.00020821,2]
[374554254,1753351862178,-460.0,0.00020821,2]
[374554255,1753351862188,-460.0,0.00020821,2]
[374554256,1753351862197,-460.0,0.00020821,2]
[374554257,1753351862206,-460.0,0.00020821,2]
[374554258,1753351862215,-460.0,0.00020821,2]
[374554259,1753351862225,-460.0,0.00020821,2]
[374554260,1753351862234,-479.16,0.00020821,2]
[374554261,1753351862243,-460.0,0.00020821,2]
[374554262,1753351862251,-549.6,0.00020821,2]
[374554263,1753351862260,-460.0,0.00020821,2]
[374554264,1753351862269,-1003.22,0.00020821,2]
[374554265,1753351862279,-460.0,0.00020821,2]
[374554266,1753351862288,-460.0,0.00020821,2]
[374554267,1753351862298,-460.0,0.00020821,2]
[374554268,1753351862307,-572.29,0.00020821,2]
[374554269,1753351862316,-460.0,0.00020821,2]
[374554270,1753351862326,-460.0,0.00020821,2]
[374554271,1753351862335,-535.05,0.00020821,2]
[374554272,1753351862344,-460.0,0.00020821,2]
[374554273,1753351862354,-460.0,0.00020821,2]
[374554274,1753351862363,-460.0,0.00020821,2]
[374554275,1753351862373,-460.0,0.00020821,2]
[374554276,1753351862382,-460.0,0.00020821,2]
[374554277,1753351862391,-460.0,0.00020821,2]
[374554278,1753351862401,-4977.75,0.00020821,2]
[374554279,1753351862411,-502.38472546,0.00020821,2]
[374554280,1753351862420,-479.28,0.00020821,2]
[374554281,1753351862430,-501.34,0.00020821,2]
[374554282,1753351862439,-680.26,0.00020821,2]
[374554283,1753351862448,-460.0,0.00020821,2]
[374554284,1753351862458,-460.0,0.00020821,2]
[374554285,1753351862467,-541.63,0.00020821,2]
[374554286,1753351862479,-460.0,0.00020821,2]
[374554287,1753351862489,-460.0,0.00020821,2]
[374554288,1753351862499,-996.17,0.00020821,2]
[374554289,1753351862510,-460.0,0.00020821,2]
[374554290,1753351862519,-538.26,0.00020821,2]
[374554291,1753351862529,-460.0,0.00020821,2]
[374554292,1753351862539,-460.0,0.00020821,2]
[374554293,1753351862549,-499.78,0.00020821,2]
[374554294,1753351862558,-1105.6,0.00020821,2]
[374554295,1753351862568,-460.0,0.00020821,2]
[374554296,1753351862577,-505.96903062,0.00020821,2]
[374554297,1753351862587,-460.0,0.00020821,2]
[374554298,1753351862675,-460.0,0.00020821,2]
[374554299,1753351862686,-460.0,0.00020821,2]
[374554300,1753351862696,-460.0,0.00020821,2]
[374554301,1753351862706,-460.0,0.00020821,2]
[374554302,1753351862716,-460.0,0.00020821,2]
[374554303,1753351862728,-460.0,0.00020821,2]
[374554304,1753351862739,-479.16,0.00020821,2]
[374554305,1753351862750,-460.0,0.00020821,2]
[374554306,1753351862761,-1249.2,0.00020821,2]
[374554307,1753351862771,-460.0,0.00020821,2]
[374554308,1753351862781,-460.0,0.00020821,2]
[374554309,1753351862791,-2021.56,0.00020821,2]
[374554310,1753351862801,-460.0,0.00020821,2]
[374554311,1753351862810,-460.0,0.00020821,2]
[374554312,1753351862821,-460.0,0.00020821,2]
[374554313,1753351862830,-352.70812028,0.00020821,2]
[374554314,1753351862840,-537.54,0.00020821,2]
[374554315,1753351862849,-473.44,0.00020821,2]
[374554316,1753351862859,-460.0,0.00020821,2]
[374554317,1753351862869,-462.44222379,0.00020821,2]
[374554318,1753351862879,-1370.91,0.00020821,2]
[374554319,1753351862888,-460.0,0.00020821,2]
[374554320,1753351862900,-460.0,0.00020821,2]
[374554321,1753351862910,-460.0,0.00020821,2]
[374554322,1753351862920,-460.0,0.00020821,2]
[374554323,1753351862929,-460.0,0.00020821,2]
[374554324,1753351862938,-460.0,0.00020821,2]
[374554325,1753351862948,-460.0,0.00020821,2]
[374554326,1753351862958,-460.0,0.00020821,2]
[374554327,1753351862968,-460.0,0.00020821,2]
[374554328,1753351862978,-460.0,0.00020821,2]
[374554329,1753351862988,-460.0,0.00020821,2]
[374554330,1753351862997,-460.0,0.00020821,2]
[374554331,1753351863007,-460.0,0.00020821,2]
[374554332,1753351863017,-460.0,0.00020821,2]
[374554333,1753351863027,-460.0,0.00020821,2]
[374554334,1753351863037,-202.03549895,0.00020821,2]
[374554335,1753351863047,-498.66,0.00020821,2]
[374554336,1753351863057,-460.0,0.00020821,2]
[374554337,1753351863068,-460.0,0.00020821,2]
[374554338,1753351863078,-460.0,0.00020821,2]
[374554339,1753351863088,-460.0,0.00020821,2]
[374554340,1753351863099,-548.0448352,0.00020854,2]
[374554341,1753351863108,-601.043,0.0002087,2]
[374554342,1753351863118,-178.70934786,0.0002087,2]
[374554343,1753351863127,-248.0,0.00020898,2]
[374554344,1753351863137,-1530.49090454,0.00020934,4]
[374554345,1753351863146,-256.36646375,0.00020956,2]
[374554346,1753351863157,-360.0,0.00020987,2]
[374554347,1753351863167,-500.0,0.00021064,2]
[374554348,1753351863176,-151.216347,0.00021064,2]
[374554349,1753351863185,-460.0,0.00021095,2]
[374554350,1753351863194,-151.0,0.00021095,2]
[374554351,1753351863204,-452.911147,0.00021095,2]
[374554352,1753351863214,-452.911147,0.00021095,2]
[374554353,1753351863223,-739.48,0.00021095,2]
[374554354,1753351863232,-460.0,0.00021095,2]
[374554355,1753351863241,-460.0,0.00021095,2]
[374554356,1753351863250,-1621.45,0.00021095,2]
[374554357,1753351863260,-460.0,0.00021095,2]
[374554358,1753351863270,-460.0,0.00021095,2]
[374554359,1753351863280,-500.46,0.00021095,2]
[374554360,1753351863289,-460.0,0.00021095,2]
[374554361,1753351863299,-460.0,0.00021095,2]
[374554362,1753351863310,-1025.92,0.00021095,2]
[374554363,1753351863319,-460.0,0.00021095,2]
[374554364,1753351863329,-460.0,0.00021095,2]
[374554365,1753351863340,-573.0,0.00021095,2]
[374554366,1753351863350,-460.0,0.00021095,2]
[374554367,1753351863360,-460.0,0.00021095,2]
[374554368,1753351863371,-460.0,0.00021095,2]
[374554369,1753351863381,-407.41580795,0.00021095,2]
[374554370,1753351863391,-460.0,0.00021095,2]
[374554371,1753351863403,-460.0,0.00021095,2]
[374554372,1753351863413,-460.0,0.00021095,2]
[374554373,1753351863423,-460.0,0.00021095,2]
[374554374,1753351863433,-460.0,0.00021095,2]
[374554375,1753351863442,-460.0,0.00021095,2]
[374554376,1753351863452,-460.0,0.00021095,2]
[374554377,1753351863461,-460.0,0.00021095,2]
[374554378,1753351863471,-460.0,0.00021095,2]
[374554379,1753351863481,-2562.09,0.00021095,2]
[374554380,1753351863491,-460.0,0.00021095,2]
[374554381,1753351863502,-460.0,0.00021095,2]
[374554382,1753351863512,-460.0,0.00021095,2]
[374554383,1753351863522,-460.0,0.00021095,2]
[374554384,1753351863532,-460.0,0.00021095,2]
[374554385,1753351863541,-460.0,0.00021095,2]
[374554386,1753351863551,-833.32,0.00021095,2]
[374554387,1753351863561,-537.03226354,0.00021095,2]
[374554388,1753351863571,-615.05,0.00021095,2]
[374554389,1753351863581,-460.0,0.00021095,2]
[374554390,1753351863590,-468.0312068,0.00021095,2]
[374554391,1753351863600,-460.0,0.00021095,2]
[374554392,1753351863610,-460.0,0.00021095,2]
[374554393,1753351863620,-460.0,0.00021095,2]
[374554394,1753351863629,-1320.28,0.00021095,2]
[374554395,1753351863639,-460.0,0.00021095,2]
[374554396,1753351863648,-460.0,0.00021095,2]
[374554397,1753351863658,-1935.6,0.00021095,2]
[374554398,1753351863668,-747.65,0.00021095,2]
[374554399,1753351863678,-747.65,0.00021095,2]
[374554400,1753351863688,-460.0,0.00021095,2]
[374554401,1753351863697,-460.0,0.00021095,2]
[374554402,1753351863708,-554.16,0.00021095,2]
[374554403,1753351863718,-460.0,0.00021095,2]
[374554404,1753351863729,-460.0,0.00021095,2]
[374554405,1753351863740,-460.0,0.00021095,2]
[374554406,1753351863749,-460.0,0.00021095,2]
[374554407,1753351863759,-460.0,0.00021095,2]
[374554408,1753351863769,-460.0,0.00021095,2]
[374554409,1753351863778,-460.0,0.00021095,2]
[374554410,1753351863788,-460.0,0.00021095,2]
[374554411,1753351863798,-460.0,0.00021095,2]
[374554412,1753351863809,-460.0,0.00021095,2]
[374554413,1753351863819,-972.56,0.00021095,2]
[374554414,1753351863828,-460.0,0.00021095,2]
[374554415,1753351863838,-460.0,0.00021095,2]
[374554416,1753351863848,-460.0,0.00021095,2]
[374554417,1753351863857,-1959.76,0.00021095,2]
[374554418,1753351863867,-474.93502964,0.00021095,2]
[374554419,1753351863877,-460.0,0.00021095,2]
[374554420,1753351863886,-501.66,0.00021095,2]
[374554421,1753351863896,-460.0,0.00021095,2]
[374554422,1753351863983,-460.0,0.00021095,2]
[374554423,1753351863993,-476.54,0.00021095,2]
[374554424,1753351864004,-323.21,0.00021095,2]
[374554425,1753351864013,-460.0,0.00021095,2]
[374554426,1753351864023,-493.61,0.00021095,2]
[374554427,1753351864033,-460.0,0.00021095,2]
[374554428,1753351864042,-460.0,0.00021095,2]
[374554429,1753351864052,-460.0,0.00021095,2]
[374554430,1753351864061,-460.0,0.00021095,2]
[374554431,1753351864071,-460.0,0.00021095,2]
[374554432,1753351864080,-460.0,0.00021095,2]
[374554433,1753351864090,-460.0,0.00021095,2]
[374554434,1753351864100,-460.0,0.00021095,2]
[374554435,1753351864109,-479.16,0.00021095,2]
[374554436,1753351864119,-460.0,0.00021095,2]
[374554437,1753351864129,-549.6,0.00021095,2]
[374554438,1753351864139,-460.0,0.00021095,2]
[374554439,1753351864149,-1003.22,0.00021095,2]
[374554440,1753351864160,-460.0,0.00021095,2]
[374554441,1753351864170,-460.0,0.00021095,2]
[374554442,1753351864179,-154.98404192,0.00021095,2]
[374554443,1753351864189,-572.29,0.00021095,2]
[374554444,1753351864199,-460.0,0.00021095,2]
[374554445,1753351864208,-460.0,0.00021095,2]
[374554446,1753351864218,-535.05,0.00021095,2]
[374554447,1753351864227,-460.0,0.00021095,2]
[374554448,1753351864237,-357.00621842,0.00021095,2]
[374554449,1753351864247,-460.0,0.00021095,2]
[374554450,1753351864257,-460.0,0.00021095,2]
[374554451,1753351864267,-460.0,0.00021095,2]
[374554452,1753351864277,-460.0,0.00021095,2]
[374554453,1753351864287,-4977.75,0.00021095,2]
[374554454,1753351864297,-479.28,0.00021095,2]
[374554455,1753351864307,-501.34,0.00021095,2]
[374554456,1753351864317,-680.26,0.00021095,2]
[374554457,1753351864327,-460.0,0.00021095,2]
[374554458,1753351864337,-460.0,0.00021095,2]
[374554459,1753351864347,-541.63,0.00021095,2]
[374554460,1753351864356,-460.0,0.00021095,2]
[374554461,1753351864366,-460.0,0.00021095,2]
[374554462,1753351864376,-460.0,0.00021095,2]
[374554463,1753351864386,-996.17,0.00021095,2]
[374554464,1753351864395,-538.26,0.00021095,2]
[374554465,1753351864406,-460.0,0.00021095,2]
[374554466,1753351864416,-460.0,0.00021095,2]
[374554467,1753351864426,-499.78,0.00021095,2]
[374554468,1753351864435,-460.0,0.00021095,2]
[374554469,1753351864445,-1105.6,0.00021095,2]
[374554470,1753351864455,-460.0,0.00021095,2]
[374554471,1753351864466,-460.0,0.00021095,2]
[374554472,1753351864475,-460.0,0.00021095,2]
[374554473,1753351864485,-460.0,0.00021095,2]
[374554474,1753351864494,-460.0,0.00021095,2]
[374554475,1753351864504,-460.0,0.00021095,2]
[374554476,1753351864514,-460.0,0.00021095,2]
[374554477,1753351864523,-479.16,0.00021095,2]
[374554478,1753351864532,-460.0,0.00021095,2]
[374554479,1753351864542,-1249.2,0.00021095,2]
[374554480,1753351864552,-460.0,0.00021095,2]
[374554481,1753351864562,-2021.56,0.00021095,2]
[374554482,1753351864572,-460.0,0.00021095,2]
[374554483,1753351864581,-484.49,0.00021095,2]
[374554484,1753351864591,-537.54,0.00021095,2]
[374554485,1753351864600,-473.44,0.00021095,2]
[374554486,1753351864611,-526.64666517,0.00021095,2]
[374554487,1753351864620,-1370.91,0.00021095,2]
[374554488,1753351864630,-460.0,0.00021095,2]
[374554489,1753351864639,-460.0,0.00021095,2]
[374554490,1753351864649,-460.0,0.00021095,2]
[374554491,1753351864658,-460.0,0.00021095,2]
[374554492,1753351864667,-460.0,0.00021095,2]
[374554493,1753351864677,-460.0,0.00021095,2]
[374554494,1753351864687,-460.0,0.00021095,2]
[374554495,1753351864697,-460.0,0.00021095,2]
[374554496,1753351864706,-460.0,0.00021095,2]
[374554497,1753351864716,-463.02392968,0.00021095,2]
[374554498,1753351864727,-460.0,0.00021095,2]
[374554499,1753351864738,-460.0,0.00021095,2]
[374554500,1753351864748,-460.0,0.00021095,2]
[374554501,1753351864758,-498.66,0.00021095,2]
[374554502,1753351864767,-460.0,0.00021095,2]
[374554503,1753351864778,-460.0,0.00021095,2]
[374554504,1753351864788,-460.0,0.00021095,2]
[374554505,1753351864797,-460.0,0.00021095,2]
[374554506,1753351864807,-3408.42267298,0.00021139,2]
[374554507,1753351864817,-328.1,0.00021141,4]
[374554508,1753351864826,-1530.49090454,0.00021141,4]
[374554509,1753351864836,-1530.49090454,0.00021348,5]
[374554510,1753351864845,-500.0,0.00021357,2]
[374554511,1753351864855,-151.0,0.00021369,2]
[374554512,1753351864864,-151.0,0.00021369,2]
[374554513,1753351864874,-460.0,0.00021369,2]
[374554514,1753351864884,-739.48,0.00021369,2]
[374554515,1753351864894,-460.0,0.00021369,2]
[374554516,1753351864904,-460.0,0.00021369,2]
[374554517,1753351864914,-1621.45,0.00021369,2]
[374554518,1753351864923,-269.56,0.00021369,2]
[374554519,1753351864933,-460.0,0.00021369,2]
[374554520,1753351864943,-460.0,0.00021369,2]
[374554521,1753351864952,-285.69965024,0.00021369,2]
[374554522,1753351864962,-1025.92,0.00021369,2]
[374554523,1753351864972,-460.0,0.00021369,2]
[374554524,1753351864981,-460.0,0.00021369,2]
[374554525,1753351864991,-460.0,0.00021369,2]
[374554526,1753351865001,-460.0,0.00021369,2]
[374554527,1753351865012,-460.0,0.00021369,2]
[374554528,1753351865021,-460.0,0.00021369,2]
[374554529,1753351865030,-460.0,0.00021369,2]
[374554530,1753351865039,-460.0,0.00021369,2]
[374554531,1753351865048,-460.0,0.00021369,2]
[374554532,1753351865058,-460.0,0.00021369,2]
[374554533,1753351865067,-460.0,0.00021369,2]
[374554534,1753351865077,-151.0,0.00021369,2]
[374554535,1753351865086,-460.0,0.00021369,2]
[374554536,1753351865158,-151.0,0.00021369,2]
[374554537,1753351865174,-460.0,0.00021369,2]
[374554538,1753351865184,-2562.09,0.00021369,2]
[374554539,1753351865193,-460.0,0.00021369,2]
[374554540,1753351865203,-460.0,0.00021369,2]
[374554541,1753351865213,-460.0,0.00021369,2]
[374554542,1753351865222,-559.34486732,0.00021369,2]
[374554543,1753351865231,-460.0,0.00021369,2]
[374554544,1753351865241,-424.87060069,0.00021369,2]
[374554545,1753351865251,-833.32,0.00021369,2]
[374554546,1753351865260,-615.05,0.00021369,2]
[374554547,1753351865269,-460.0,0.00021369,2]
[374554548,1753351865278,-460.0,0.00021369,2]
[374554549,1753351865288,-460.0,0.00021369,2]
[374554550,1753351865297,-1320.28,0.00021369,2]
[374554551,1753351865306,-504.85476836,0.00021369,2]
[374554552,1753351865316,-239.01,0.00021369,2]
[374554553,1753351865326,-460.0,0.00021369,2]
[374554554,1753351865336,-1935.6,0.00021369,2]
[374554555,1753351865346,-747.65,0.00021369,2]
[374554556,1753351865356,-747.65,0.00021369,2]
[374554557,1753351865365,-460.0,0.00021369,2]
[374554558,1753351865375,-460.0,0.00021369,2]
[374554559,1753351865384,-554.16,0.00021369,2]
[374554560,1753351865394,-460.0,0.00021369,2]
[374554561,1753351865404,-460.0,0.00021369,2]
[374554562,1753351865413,-460.0,0.00021369,2]
[374554563,1753351865423,-366.30638691,0.00021369,2]
[374554564,1753351865432,-158.40065603,0.00021369,2]
[374554565,1753351865441,-460.0,0.00021369,2]
[374554566,1753351865451,-460.0,0.00021369,2]
[374554567,1753351865460,-460.0,0.00021369,2]
[374554568,1753351865469,-410.79926715,0.00021369,2]
[374554569,1753351865479,-972.56,0.00021369,2]
[374554570,1753351865491,-460.0,0.00021369,2]
[374554571,1753351865509,-460.0,0.00021369,2]
[374554572,1753351865528,-460.0,0.00021369,2]
[374554573,1753351865537,-1959.76,0.00021369,2]
[374554574,1753351865546,-460.0,0.00021369,2]
[374554575,1753351865555,-501.66,0.00021369,2]
[374554576,1753351865564,-460.0,0.00021369,2]
[374554577,1753351865574,-476.54,0.00021369,2]
[374554578,1753351865583,-489.33564879,0.00021369,2]
[374554579,1753351865592,-493.61,0.00021369,2]
[374554580,1753351865601,-460.0,0.00021369,2]
[374554581,1753351865611,-460.0,0.00021369,2]
[374554582,1753351865620,-460.0,0.00021369,2]
[374554583,1753351865630,-460.0,0.00021369,2]
[374554584,1753351865639,-460.0,0.00021369,2]
[374554585,1753351865649,-480.6889228,0.00021369,2]
[374554586,1753351865658,-460.0,0.00021369,2]
[374554587,1753351865668,-479.16,0.00021369,2]
[374554588,1753351865677,-601.6759021,0.00021369,2]
[374554589,1753351865693,-549.6,0.00021369,2]
[374554590,1753351865711,-460.0,0.00021369,2]
[374554591,1753351865730,-1003.22,0.00021369,2]
[374554592,1753351865749,-460.0,0.00021369,2]
[374554593,1753351865768,-460.0,0.00021369,2]
[374554594,1753351865784,-572.29,0.00021369,2]
[374554595,1753351865802,-460.0,0.00021369,2]
[374554596,1753351865817,-460.0,0.00021369,2]
[374554597,1753351865833,-535.05,0.00021369,2]
[374554598,1753351865853,-460.0,0.00021369,2]
[374554599,1753351865871,-460.0,0.00021369,2]
[374554600,1753351865884,-460.0,0.00021369,2]
[374554601,1753351865904,-460.0,0.00021369,2]
[374554602,1753351865918,-4977.75,0.00021369,2]
[374554603,1753351865935,-479.28,0.00021369,2]
[374554604,1753351865950,-501.34,0.00021369,2]
[374554605,1753351865966,-680.26,0.00021369,2]
[374554606,1753351865981,-479.4988426,0.00021369,2]
[374554607,1753351865996,-460.0,0.00021369,2]
[374554608,1753351866011,-541.63,0.00021369,2]
[374554609,1753351866026,-460.0,0.00021369,2]
[374554610,1753351866042,-460.0,0.00021369,2]
[374554611,1753351866056,-996.17,0.00021369,2]
[374554612,1753351866071,-460.0,0.00021369,2]
[374554613,1753351866085,-538.26,0.00021369,2]
[374554614,1753351866101,-460.0,0.00021369,2]
[374554615,1753351866115,-172.13230197,0.00021369,2]
[374554616,1753351866130,-199.260206,0.00021369,2]
[374554617,1753351866145,-499.78,0.00021369,2]
[374554618,1753351866160,-199.260206,0.00021369,2]
[374554619,1753351866174,-460.0,0.00021369,2]
[374554620,1753351866188,-1105.6,0.00021369,2]
[374554621,1753351866201,-460.0,0.00021369,2]
[374554622,1753351866216,-460.0,0.00021369,2]
[374554623,1753351866229,-460.0,0.00021369,2]
[374554624,1753351866243,-460.0,0.00021369,2]
[374554625,1753351866260,-460.0,0.00021369,2]
[374554626,1753351866274,-334.4332299,0.00021369,2]
[374554627,1753351866289,-460.0,0.00021369,2]
[374554628,1753351866305,-479.16,0.00021369,2]
[374554629,1753351866321,-460.0,0.00021369,2]
[374554630,1753351866336,-1249.2,0.00021369,2]
[374554631,1753351866351,-460.0,0.00021369,2]
[374554632,1753351866366,-2021.56,0.00021369,2]
[374554633,1753351866383,-460.0,0.00021369,2]
[374554634,1753351866398,-537.54,0.00021369,2]
[374554635,1753351866414,-151.0,0.00021369,2]
[374554636,1753351866428,-473.44,0.00021369,2]
[374554637,1753351866443,-151.0,0.00021369,2]
[374554638,1753351866458,-1370.91,0.00021369,2]
[374554639,1753351866473,-460.0,0.00021369,2]
[374554640,1753351866488,-460.0,0.00021369,2]
[374554641,1753351866503,-460.0,0.00021369,2]
[374554642,1753351866614,-220.0,0.00021369,2]
[374554643,1753351866624,-460.0,0.00021369,2]
[374554644,1753351866634,-460.0,0.00021369,2]
[374554645,1753351866643,-460.0,0.00021369,2]
[374554646,1753351866655,-460.0,0.00021369,2]
[374554647,1753351866664,-460.0,0.00021369,2]
[374554648,1753351866674,-460.0,0.00021369,2]
[374554649,1753351866684,-460.0,0.00021369,2]
[374554650,1753351866695,-498.66,0.00021369,2]
[374554651,1753351866705,-460.0,0.00021369,2]
[374554652,1753351866715,-460.0,0.00021369,2]
[374554653,1753351866724,-460.0,0.00021369,2]
[374554654,1753351866737,-328.1,0.00021482,4]
[374554655,1753351866747,-260.0,0.00021535,2]
[374554656,1753351866756,-1530.49090454,0.00021555,5]
[374554657,1753351866765,-460.0,0.00021643,2]
[374554658,1753351866776,-739.48,0.00021643,2]
[374554659,1753351866786,-460.0,0.00021643,2]
[374554660,1753351866795,-460.0,0.00021643,2]
[374554661,1753351866806,-1621.45,0.00021643,2]
[374554662,1753351866815,-460.0,0.00021643,2]
[374554663,1753351866824,-460.0,0.00021643,2]
[374554664,1753351866833,-1025.92,0.00021643,2]
[374554665,1753351866842,-198.82698452,0.00021643,2]
[374554666,1753351866851,-557.92247939,0.00021643,2]
[374554667,1753351866861,-460.0,0.00021643,2]
[374554668,1753351866870,-460.0,0.00021643,2]
[374554669,1753351866880,-460.0,0.00021643,2]
[374554670,1753351866889,-460.0,0.00021643,2]
[374554671,1753351866899,-460.0,0.00021643,2]
[374554672,1753351866911,-460.0,0.00021643,2]
[374554673,1753351866920,-502.1114801,0.00021643,2]
[374554674,1753351866929,-460.0,0.00021643,2]
[374554675,1753351866939,-460.0,0.00021643,2]
[374554676,1753351866948,-460.0,0.00021643,2]
[374554677,1753351866958,-460.0,0.00021643,2]
[374554678,1753351866967,-2562.09,0.00021643,2]
[374554679,1753351866977,-460.0,0.00021643,2]
[374554680,1753351866986,-460.0,0.00021643,2]
[374554681,1753351866995,-460.0,0.00021643,2]
[374554682,1753351867004,-460.0,0.00021643,2]
[374554683,1753351867014,-833.32,0.00021643,2]
[374554684,1753351867023,-615.05,0.00021643,2]
[374554685,1753351867033,-460.0,0.00021643,2]
[374554686,1753351867042,-460.0,0.00021643,2]
[374554687,1753351867052,-460.0,0.00021643,2]
[374554688,1753351867061,-1320.28,0.00021643,2]
[374554689,1753351867071,-460.0,0.00021643,2]
[374554690,1753351867080,-1935.6,0.00021643,2]
[374554691,1753351867090,-747.65,0.00021643,2]
[374554692,1753351867099,-747.65,0.00021643,2]
[374554693,1753351867109,-460.0,0.00021643,2]
[374554694,1753351867119,-460.0,0.00021643,2]
[374554695,1753351867128,-554.16,0.00021643,2]
[374554696,1753351867143,-460.0,0.00021643,2]
[374554697,1753351867161,-460.0,0.00021643,2]
[374554698,1753351867171,-460.0,0.00021643,2]
[374554699,1753351867180,-460.0,0.00021643,2]
[374554700,1753351867189,-460.0,0.00021643,2]
[374554701,1753351867199,-460.0,0.00021643,2]
[374554702,1753351867208,-972.56,0.00021643,2]
[374554703,1753351867218,-460.0,0.00021643,2]
[374554704,1753351867227,-460.0,0.00021643,2]
[374554705,1753351867236,-460.0,0.00021643,2]
[374554706,1753351867245,-1959.76,0.00021643,2]
[374554707,1753351867254,-501.66,0.00021643,2]
[374554708,1753351867262,-460.0,0.00021643,2]
[374554709,1753351867271,-476.54,0.00021643,2]
[374554710,1753351867280,-493.61,0.00021643,2]
[374554711,1753351867289,-188.97474229,0.00021643,2]
[374554712,1753351867299,-460.0,0.00021643,2]
[374554713,1753351867308,-460.0,0.00021643,2]
[374554714,1753351867319,-460.0,0.00021643,2]
[374554715,1753351867335,-460.0,0.00021643,2]
[374554716,1753351867348,-479.16,0.00021643,2]
[374554717,1753351867357,-549.6,0.00021643,2]
[374554718,1753351867367,-460.0,0.00021643,2]
[374554719,1753351867377,-460.0,0.00021643,2]
[374554720,1753351867386,-1003.22,0.00021643,2]
[374554721,1753351867395,-460.0,0.00021643,2]
[374554722,1753351867407,-572.29,0.00021643,2]
[374554723,1753351867417,-460.0,0.00021643,2]
[374554724,1753351867426,-535.05,0.00021643,2]
[374554725,1753351867437,-460.0,0.00021643,2]
[374554726,1753351867447,-460.0,0.00021643,2]
[374554727,1753351867457,-460.0,0.00021643,2]
[374554728,1753351867467,-460.0,0.00021643,2]
[374554729,1753351867477,-4977.75,0.00021643,2]
[374554730,1753351867487,-479.28,0.00021643,2]
[374554731,1753351867499,-501.34,0.00021643,2]
[374554732,1753351867508,-680.26,0.00021643,2]
[374554733,1753351867518,-460.0,0.00021643,2]
[374554734,1753351867528,-541.63,0.00021643,2]
[374554735,1753351867538,-460.0,0.00021643,2]
[374554736,1753351867548,-460.0,0.00021643,2]
[374554737,1753351867558,-996.17,0.00021643,2]
[374554738,1753351867568,-460.0,0.00021643,2]
[374554739,1753351867578,-538.26,0.00021643,2]
[374554740,1753351867587,-460.0,0.00021643,2]